fUST/lending_fUST_20240727
["ID","MTS","AMOUNT","RATE_DAILY","PERIOD"]
[333347334,1722064239795,-500.0,0.00013698,2]
[333347335,1722064239804,-515.78965127,0.00013698,2]
[333347336,1722064239813,-500.0,0.00013698,2]
[333347337,1722064239827,-500.0,0.00013698,2]
[333347338,1722064239836,-500.0,0.00013698,2]
[333347339,1722064239846,-500.0,0.00013698,2]
[333347340,1722064239856,-1313.32,0.00013698,2]
[333347341,1722064239865,-500.0,0.00013698,2]
[333347342,1722064239877,-500.0,0.00013698,2]
[333347343,1722064239887,-269.990382,0.00013698,2]
[333347344,1722064239898,-780.64,0.00013698,2]
[333347345,1722064239909,-500.0,0.00013698,2]
[333347346,1722064239919,-500.0,0.00013698,2]
[333347347,1722064239930,-701.86,0.00013698,2]
[333347348,1722064239941,-500.0,0.00013698,2]
[333347349,1722064239950,-500.0,0.00013698,2]
[333347350,1722064239959,-531.28106189,0.00013698,2]
[333347351,1722064239968,-500.0,0.00013698,2]
[333347352,1722064239978,-500.0,0.00013698,2]
[333347353,1722064239987,-500.0,0.00013698,2]
[333347354,1722064239997,-640.32333384,0.00013698,2]
[333347355,1722064240006,-500.0,0.00013698,2]
[333347356,1722064240016,-500.0,0.00013698,2]
[333347357,1722064240026,-500.0,0.00013698,2]
[333347358,1722064240036,-500.0,0.00013698,2]
[333347359,1722064240045,-503.79320357,0.00013698,2]
[333347360,1722064240055,-500.0,0.00013698,2]
[333347361,1722064240065,-500.0,0.00013698,2]
[333347362,1722064240074,-178.020077,0.00013698,2]
[333347363,1722064240084,-178.020077,0.00013698,2]
[333347364,1722064240093,-500.0,0.00013698,2]
[333347365,1722064240103,-178.020077,0.00013698,2]
[333347366,1722064240112,-500.0,0.00013698,2]
[333347367,1722064240122,-178.020077,0.00013698,2]
[333347368,1722064240131,-518.49,0.00013698,2]
[333347369,1722064240141,-500.0,0.00013698,2]
[333347370,1722064240150,-518.49,0.00013698,2]
[333347371,1722064240159,-518.49,0.00013698,2]
[333347372,1722064240169,-518.49,0.00013698,2]
[333347373,1722064240179,-518.49,0.00013698,2]
[333347374,1722064240188,-518.49,0.00013698,2]
[333347375,1722064240197,-518.49,0.00013698,2]
[333347377,1722064240207,-151.0,0.00013698,2]
[333347379,1722064240216,-518.49,0.00013698,2]
[333347381,1722064240225,-500.0,0.00013698,2]
[333347382,1722064240234,-518.49,0.00013698,2]
[333347383,1722064240245,-518.49,0.00013698,2]
[333347384,1722064240254,-518.49,0.00013698,2]
[333347385,1722064240264,-518.49,0.00013698,2]
[333347386,1722064240273,-518.49,0.00013698,2]
[333347387,1722064240282,-518.49,0.00013698,2]
[333347388,1722064240291,-505.61158073,0.00013698,2]
[333347389,1722064240300,-518.49,0.00013698,2]
[333347390,1722064240311,-518.49,0.00013698,2]
[333347391,1722064240322,-518.49,0.00013698,2]
[333347392,1722064240332,-518.49,0.00013698,2]
[333347393,1722064240342,-518.49,0.00013698,2]
[333347394,1722064240354,-518.49,0.00013698,2]
[333347395,1722064240365,-518.49,0.00013698,2]
[333347396,1722064240374,-518.49,0.00013698,2]
[333347397,1722064240384,-500.0,0.00013698,2]
[333347398,1722064240393,-518.49,0.00013698,2]
[333347399,1722064240403,-518.55427424,0.00013698,2]
[333347400,1722064240413,-500.0,0.00013698,2]
[333347401,1722064240422,-500.0,0.00013698,2]
[333347402,1722064240432,-500.0,0.00013698,2]
[333347403,1722064240441,-691.39,0.00013698,2]
[333347404,1722064240451,-500.0,0.00013698,2]
[333347405,1722064240460,-500.0,0.00013698,2]
[333347406,1722064240469,-500.0,0.00013698,2]
[333347407,1722064240480,-500.0,0.00013698,2]
[333347408,1722064240491,-500.0,0.00013698,2]
[333347409,1722064240503,-500.0,0.00013698,2]
[333347411,1722064240512,-151.418861,0.00013698,2]
[333347413,1722064240524,-500.0,0.00013698,2]
[333347415,1722064240535,-756.67,0.00013698,2]
[333347417,1722064240544,-500.0,0.00013698,2]
[333347419,1722064240553,-500.0,0.00013698,2]
[333347421,1722064240563,-715.56,0.00013698,2]
[333347423,1722064240573,-500.06718073,0.00013698,2]
[333347425,1722064240582,-500.0,0.00013698,2]
[333347427,1722064240592,-500.0,0.00013698,2]
[333347429,1722064240602,-863.14,0.00013698,2]
[333347431,1722064240614,-150.0,0.00013698,2]
[333347433,1722064240624,-151.0,0.00013698,2]
[333347435,1722064240633,-500.80298381,0.00013698,2]
[333347437,1722064240643,-500.0,0.00013698,2]
[333347439,1722064240653,-500.0,0.00013698,2]
[333347441,1722064240662,-286.68811163,0.00013698,2]
[333347443,1722064240672,-525.44,0.00013698,2]
[333347445,1722064240682,-500.0,0.00013698,2]
[333347447,1722064240691,-500.0,0.00013698,2]
[333347449,1722064240701,-500.0,0.00013698,2]
[333347451,1722064240711,-500.0,0.00013698,2]
[333347453,1722064240720,-500.0,0.00013698,2]
[333347455,1722064240729,-500.0,0.00013698,2]
[333347457,1722064240739,-500.0,0.00013698,2]
[333347459,1722064240751,-940.74,0.00013698,2]
[333347461,1722064240761,-500.0,0.00013698,2]
[333347463,1722064240770,-500.0,0.00013698,2]
[333347465,1722064240780,-500.0,0.00013698,2]
[333347467,1722064240789,-377.36799205,0.00013698,2]
[333347469,1722064240801,-500.0,0.00013698,2]
[333347471,1722064240811,-502.78747536,0.00013698,2]
[333347473,1722064240820,-500.0,0.00013698,2]
[333347475,1722064240832,-500.0,0.00013698,2]
[333347477,1722064240842,-502.04426339,0.00013698,2]
[333347479,1722064240851,-500.0,0.00013698,2]
[333347481,1722064240861,-500.0,0.00013698,2]
[333347483,1722064240871,-500.0,0.00013698,2]
[333347485,1722064240880,-500.02705923,0.00013698,2]
[333347487,1722064240890,-500.0,0.00013698,2]
[333347489,1722064240899,-1065.25,0.00013698,2]
[333347491,1722064240909,-500.0,0.00013698,2]
[333347493,1722064240918,-565.89448725,0.00013698,2]
[333347495,1722064240928,-276.21764747,0.00013698,2]
[333347498,1722064240949,-223.78235253,0.00013698,2]
[333347500,1722064240959,-500.0,0.00013698,2]
[333347502,1722064240968,-500.0,0.00013698,2]
[333347504,1722064240978,-500.0,0.00013698,2]
[333347506,1722064240987,-500.0,0.00013698,2]
[333347508,1722064240997,-500.0,0.00013698,2]
[333347510,1722064241006,-500.0,0.00013698,2]
[333347511,1722064241016,-500.0,0.00013698,2]
[333347512,1722064241025,-500.0,0.00013698,2]
[333347513,1722064241034,-500.0,0.00013698,2]
[333347514,1722064241043,-1009.13,0.00013698,2]
[333347515,1722064241053,-500.0,0.00013698,2]
[333347516,1722064241062,-500.0,0.00013698,2]
[333347517,1722064241071,-500.0,0.00013698,2]
[333347518,1722064241080,-500.0,0.00013698,2]
[333347519,1722064241090,-500.0,0.00013698,2]
[333347520,1722064241100,-500.0,0.00013698,2]
[333347521,1722064241110,-500.0,0.00013698,2]
[333347522,1722064241121,-513.10565774,0.00013698,2]
[333347523,1722064241130,-500.0,0.00013698,2]
[333347524,1722064241139,-497.88815014,0.00013698,2]
[333347525,1722064241149,-500.0,0.00013698,2]
[333347526,1722064241158,-920.08,0.00013698,2]
[333347527,1722064241167,-505.99714676,0.00013698,2]
[333347528,1722064241177,-500.0,0.00013698,2]
[333347529,1722064241186,-175.39455562,0.00013698,2]
[333347530,1722064241196,-500.0,0.00013698,2]
[333347531,1722064241205,-500.0,0.00013698,2]
[333347532,1722064241214,-500.0,0.00013698,2]
[333347533,1722064241223,-500.0,0.00013698,2]
[333347534,1722064241233,-503.67364625,0.00013698,2]
[333347535,1722064241242,-500.0,0.00013698,2]
[333347536,1722064241252,-640.2,0.00013698,2]
[333347537,1722064241262,-500.0,0.00013698,2]
[333347538,1722064241272,-503.19716598,0.00013698,2]
[333347539,1722064241282,-503.25473064,0.00013698,2]
[333347540,1722064241291,-500.0,0.00013698,2]
[333347541,1722064241302,-503.89305881,0.00013698,2]
[333347542,1722064241311,-500.0,0.00013698,2]
[333347543,1722064241322,-1425.74,0.00013698,2]
[333347544,1722064241331,-383.2498869,0.00013698,2]
[333347545,1722064241341,-502.64214137,0.00013698,2]
[333347546,1722064241352,-503.8064443,0.00013698,2]
[333347547,1722064241361,-500.0,0.00013698,2]
[333347548,1722064241370,-504.27712946,0.00013698,2]
[333347549,1722064241379,-500.0,0.00013698,2]
[333347550,1722064241388,-503.79506167,0.00013698,2]
[333347551,1722064241398,-500.0,0.00013698,2]
[333347552,1722064241408,-505.44286173,0.00013698,2]
[333347553,1722064241417,-500.0,0.00013698,2]
[333347554,1722064241426,-153.183534,0.00013698,2]
[333347555,1722064241437,-500.0,0.00013698,2]
[333347556,1722064241448,-679.43,0.00013698,2]
[333347557,1722064241459,-500.66407978,0.00013698,2]
[333347558,1722064241468,-500.0,0.00013698,2]
[333347559,1722064241478,-500.0,0.00013698,2]
[333347560,1722064241488,-500.0,0.00013698,2]
[333347561,1722064241497,-500.0,0.00013698,2]
[333347562,1722064241507,-500.0,0.00013698,2]
[333347563,1722064241516,-500.0,0.00013698,2]
[333347564,1722064241632,-500.0,0.00013698,2]
[333347565,1722064241657,-628.72524575,0.00013698,2]
[333347566,1722064241667,-500.0,0.00013698,2]
[333347567,1722064241677,-500.0,0.00013698,2]
[333347568,1722064241687,-503.37983709,0.00013698,2]
[333347569,1722064241696,-500.0,0.00013698,2]
[333347570,1722064241706,-500.0,0.00013698,2]
[333347571,1722064241716,-507.03103475,0.00013698,2]
[333347572,1722064241725,-500.68249841,0.00013698,2]
[333347573,1722064241734,-500.0,0.00013698,2]
[333347574,1722064241744,-500.0,0.00013698,2]
[333347575,1722064241758,-500.0,0.00013698,2]
[333347576,1722064241768,-171.802352,0.00013698,2]
[333347577,1722064241778,-171.802352,0.00013698,2]
[333347578,1722064241788,-513.98845385,0.00013698,2]
[333347579,1722064241798,-171.802352,0.00013698,2]
[333347580,1722064241807,-171.802352,0.00013698,2]
[333347581,1722064241817,-171.802352,0.00013698,2]
[333347582,1722064241827,-500.0,0.00013698,2]
[333347583,1722064241837,-171.802352,0.00013698,2]
[333347584,1722064241847,-501.38770988,0.00013698,2]
[333347585,1722064241857,-500.0,0.00013698,2]
[333347586,1722064241867,-500.0,0.00013698,2]
[333347587,1722064241877,-500.0,0.00013698,2]
[333347588,1722064241887,-500.0,0.00013698,2]
[333347589,1722064241896,-618.03,0.00013698,2]
[333347590,1722064241906,-502.46813077,0.00013698,2]
[333347591,1722064241915,-500.0,0.00013698,2]
[333347592,1722064241925,-500.0,0.00013698,2]
[333347593,1722064241934,-500.0,0.00013698,2]
[333347594,1722064241944,-500.0,0.00013698,2]
[333347595,1722064241953,-500.0,0.00013698,2]
[333347596,1722064241963,-500.0,0.00013698,2]
[333347597,1722064241973,-500.0,0.00013698,2]
[333347598,1722064241982,-545.39409708,0.00013698,2]
[333347599,1722064241992,-533.48808814,0.00013698,2]
[333347600,1722064242001,-500.0,0.00013698,2]
[333347601,1722064242011,-500.0,0.00013698,2]
[333347602,1722064242021,-500.0,0.00013698,2]
[333347603,1722064242033,-500.0,0.00013698,2]
[333347604,1722064242044,-500.0,0.00013698,2]
[333347605,1722064242056,-1613.79,0.00013698,2]
[333347606,1722064242066,-1168.4,0.00013698,2]
[333347607,1722064242076,-502.58073486,0.00013698,2]
[333347608,1722064242085,-151.0,0.00013698,2]
[333347609,1722064242095,-151.0,0.00013698,2]
[333347610,1722064242105,-500.0,0.00013698,2]
[333347611,1722064242117,-151.0,0.00013698,2]
[333347612,1722064242128,-500.0,0.00013698,2]
[333347613,1722064242140,-500.0,0.00013698,2]
[333347614,1722064242150,-500.0,0.00013698,2]
[333347615,1722064242161,-503.59157369,0.00013698,2]
[333347616,1722064242171,-1184.39,0.00013698,2]
[333347617,1722064242180,-2281.35,0.00013698,2]
[333347618,1722064242190,-500.0,0.00013698,2]
[333347619,1722064242199,-151.0,0.00013698,2]
[333347620,1722064242209,-151.0,0.00013698,2]
[333347621,1722064242220,-151.0,0.00013698,2]
[333347622,1722064242232,-151.0,0.00013698,2]
[333347623,1722064242243,-151.0,0.00013698,2]
[333347624,1722064242254,-151.0,0.00013698,2]
[333347625,1722064242267,-151.0,0.00013698,2]
[333347626,1722064242277,-151.0,0.00013698,2]
[333347627,1722064242286,-151.0,0.00013698,2]
[333347628,1722064242296,-566.65,0.00013698,2]
[333347629,1722064242305,-5036.43,0.00013698,2]
[333347630,1722064242315,-151.0,0.00013698,2]
[333347631,1722064242326,-151.0,0.00013698,2]
[333347632,1722064242335,-281.525114,0.00013698,2]
[333347633,1722064242345,-272.96446372,0.00013698,2]
[333347634,1722064242372,-227.03553628,0.00013698,2]
[333347635,1722064242381,-2121.75,0.00013698,2]
[333347636,1722064242390,-500.0,0.00013698,2]
[333347637,1722064242400,-1322.56,0.00013698,2]
[333347638,1722064242409,-500.0,0.00013698,2]
[333347639,1722064242419,-500.0,0.00013698,2]
[333347640,1722064242428,-500.0,0.00013698,2]
[333347641,1722064242437,-151.0,0.00013698,2]
[333347642,1722064242447,-303.95416911,0.00013698,2]
[333347643,1722064242456,-500.0,0.00013698,2]
[333347644,1722064242466,-151.0,0.00013698,2]
[333347645,1722064242475,-151.0,0.00013698,2]
[333347646,1722064242485,-500.0,0.00013698,2]
[333347647,1722064242494,-500.0,0.00013698,2]
[333347648,1722064242503,-500.0,0.00013698,2]
[333347649,1722064242512,-500.0,0.00013698,2]
[333347650,1722064242521,-151.0,0.00013698,2]
[333347651,1722064242531,-500.0,0.00013698,2]
[333347652,1722064242540,-500.0,0.00013698,2]
[333347653,1722064242549,-500.0,0.00013698,2]
[333347654,1722064242559,-500.0,0.00013698,2]
[333347655,1722064242569,-500.0,0.00013698,2]
[333347656,1722064242579,-500.0,0.00013698,2]
[333347657,1722064242588,-151.0,0.00013698,2]
[333347658,1722064242597,-151.0,0.00013698,2]
[333347659,1722064242607,-500.0,0.00013698,2]
[333347660,1722064242616,-151.0,0.00013698,2]
[333347661,1722064242625,-9069.91,0.00013698,2]
[333347662,1722064242634,-1215.8,0.00013698,2]
[333347663,1722064242644,-503.92257116,0.00013698,2]
[333347664,1722064242653,-500.0,0.00013698,2]
[333347665,1722064242662,-500.0,0.00013698,2]
[333347666,1722064242672,-500.0,0.00013698,2]
[333347667,1722064242681,-500.0,0.00013698,2]
[333347668,1722064242690,-500.0,0.00013698,2]
[333347669,1722064242699,-660.69,0.00013698,2]
[333347670,1722064242710,-500.0,0.00013698,2]
[333347672,1722064242720,-433.014935,0.00013698,2]
[333347673,1722064242730,-500.0,0.00013698,2]
[333347674,1722064242740,-433.014935,0.00013698,2]
[333347675,1722064242755,-500.0,0.00013698,2]
[333347676,1722064242766,-433.014935,0.00013698,2]
[333347677,1722064242775,-510.35524229,0.00013698,2]
[333347678,1722064242785,-500.0,0.00013698,2]
[333347679,1722064242796,-382.96,0.00013698,2]
[333347680,1722064242805,-500.0,0.00013698,2]
[333347681,1722064242815,-2343.81,0.00013698,2]
[333347683,1722064242828,-500.0,0.00013698,2]
[333347684,1722064242838,-433.014935,0.00013698,2]
[333347686,1722064242848,-433.014935,0.00013698,2]
[333347688,1722064242857,-433.014935,0.00013698,2]
[333347690,1722064242867,-3531.71,0.00013698,2]
[333347691,1722064242876,-500.0,0.00013698,2]
[333347692,1722064242886,-500.0,0.00013698,2]
[333347693,1722064242895,-151.0,0.00013698,2]
[333347694,1722064242904,-151.639639,0.00013698,2]
[333347695,1722064242917,-497.844879,0.00013698,2]
[333347696,1722064242929,-151.0,0.00013698,2]
[333347697,1722064242939,-497.844879,0.00013698,2]
[333347698,1722064242950,-497.844879,0.00013698,2]
[333347699,1722064242962,-151.0,0.00013698,2]
[333347700,1722064242972,-1627.29,0.00013698,2]
[333347701,1722064242982,-151.0,0.00013698,2]
[333347702,1722064242991,-500.0,0.00013698,2]
[333347703,1722064243000,-497.844879,0.00013698,2]
[333347704,1722064243010,-497.844879,0.00013698,2]
[333347705,1722064243020,-497.844879,0.00013698,2]
[333347706,1722064243029,-500.0,0.00013698,2]
[333347707,1722064243040,-151.667555,0.00013698,2]
[333347708,1722064243049,-500.0,0.00013698,2]
[333347709,1722064243061,-500.0,0.00013698,2]
[333347710,1722064243070,-523.8,0.00013698,2]
[333347711,1722064243079,-559.01,0.00013698,2]
[333347712,1722064243089,-492.46075562,0.00013698,2]
[333347713,1722064243099,-633.2818664,0.00013698,2]
[333347714,1722064243108,-500.0,0.00013698,2]
[333347715,1722064243118,-500.0,0.00013698,2]
[333347716,1722064243129,-798.51,0.00013698,2]
[333347718,1722064243139,-508.51697942,0.00013698,2]
[333347720,1722064243149,-500.0,0.00013698,2]
[333347722,1722064243159,-500.0,0.00013698,2]
[333347724,1722064243169,-500.0,0.00013698,2]
[333347725,1722064243178,-500.0,0.00013698,2]
[333347727,1722064243188,-500.0,0.00013698,2]
[333347729,1722064243197,-500.0,0.00013698,2]
[333347730,1722064243207,-500.0,0.00013698,2]
[333347732,1722064243216,-2007.29,0.00013698,2]
[333347734,1722064243226,-500.0,0.00013698,2]
[333347736,1722064243235,-500.0,0.00013698,2]
[333347738,1722064243245,-906.18,0.00013698,2]
[333347740,1722064243254,-432.79895704,0.00013698,2]
[333347742,1722064243264,-500.0,0.00013698,2]
[333347744,1722064243274,-542.55,0.00013698,2]
[333347746,1722064243283,-500.0,0.00013698,2]
[333347748,1722064243293,-500.0,0.00013698,2]
[333347750,1722064243302,-1909.69,0.00013698,2]
[333347752,1722064243312,-500.0,0.00013698,2]
[333347754,1722064243321,-736.65,0.00013698,2]
[333347756,1722064243332,-500.0,0.00013698,2]
[333347758,1722064243341,-1134.18,0.00013698,2]
[333347760,1722064243351,-200.335889,0.00013698,2]
[333347762,1722064243362,-200.335889,0.00013698,2]
[333347764,1722064243372,-200.335889,0.00013698,2]
[333347766,1722064243381,-500.0,0.00013698,2]
[333347768,1722064243392,-200.335889,0.00013698,2]
[333347770,1722064243402,-200.335889,0.00013698,2]
[333347772,1722064243411,-200.335889,0.00013698,2]
[333347774,1722064243421,-505.28560833,0.00013698,2]
[333347776,1722064243431,-894.35,0.00013698,2]
[333347777,1722064243440,-500.0,0.00013698,2]
[333347778,1722064243451,-500.0,0.00013698,2]
[333347779,1722064243461,-151.0,0.00013698,2]
[333347780,1722064243471,-151.0,0.00013698,2]
[333347781,1722064243481,-188.81152226,0.00013698,2]
[333347782,1722064243491,-659.20082298,0.00013698,2]
[333347783,1722064243506,-5567.19917702,0.00013698,2]
[333347784,1722064243516,-714.85,0.00013698,2]
[333347785,1722064243528,-500.0,0.00013698,2]
[333347786,1722064243539,-771.84,0.00013698,2]
[333347787,1722064243551,-500.0,0.00013698,2]
[333347788,1722064243561,-193.802402,0.00013698,2]
[333347789,1722064243571,-193.802402,0.00013698,2]
[333347790,1722064243581,-193.802402,0.00013698,2]
[333347791,1722064243593,-500.0,0.00013698,2]
[333347792,1722064243604,-151.0,0.00013698,2]
[333347793,1722064243615,-151.0,0.00013698,2]
[333347794,1722064243624,-500.0,0.00013698,2]
[333347795,1722064243634,-193.802402,0.00013698,2]
[333347796,1722064243643,-151.0,0.00013698,2]
[333347798,1722064243652,-193.802402,0.00013698,2]
[333347800,1722064243661,-193.802402,0.00013698,2]
[333347802,1722064243671,-3201.66,0.00013698,2]
[333347804,1722064243680,-500.0,0.00013698,2]
[333347806,1722064243690,-151.0,0.00013698,2]
[333347808,1722064243699,-151.0,0.00013698,2]
[333347810,1722064243709,-500.0,0.00013698,2]
[333347812,1722064243718,-500.0,0.00013698,2]
[333347814,1722064243727,-500.0,0.00013698,2]
[333347816,1722064243736,-210.10830037,0.00013698,2]
[333347818,1722064243745,-2442.96,0.00013698,2]
[333347820,1722064243758,-500.0,0.00013698,2]
[333347822,1722064243768,-1076.5,0.00013698,2]
[333347824,1722064243777,-500.0,0.00013698,2]
[333347826,1722064243786,-997.31,0.00013698,2]
[333347829,1722064243797,-500.0,0.00013698,2]
[333347831,1722064243807,-500.0,0.00013698,2]
[333347833,1722064243816,-500.0,0.00013698,2]
[333347835,1722064243827,-1435.23,0.00013698,2]
[333347837,1722064243837,-151.0,0.00013698,2]
[333347838,1722064243846,-228.20082559,0.00013698,2]
[333347840,1722064243855,-201.44758,0.00013698,2]
[333347842,1722064243865,-1151.5,0.00013698,2]
[333347844,1722064243874,-500.0,0.00013698,2]
[333347846,1722064243885,-527.68,0.00013698,2]
[333347848,1722064243895,-818.35,0.00013698,2]
[333347850,1722064243904,-500.0,0.00013698,2]
[333347852,1722064243914,-151.0,0.00013698,2]
[333347854,1722064243923,-151.0,0.00013698,2]
[333347856,1722064243934,-500.0,0.00013698,2]
[333347858,1722064243943,-500.0,0.00013698,2]
[333347860,1722064243953,-500.0,0.00013698,2]
[333347861,1722064243962,-400.9825435,0.00013698,2]
[333347871,1722064244123,-99.0174565,0.00013698,2]
[333347872,1722064244133,-169.15542346,0.00013698,2]
[333347873,1722064244273,-154.99994993,0.00013283,2]
[333347874,1722064244283,-154.69833824,0.00013283,2]
[333347875,1722064244293,-330.84457654,0.00013698,2]
[333347876,1722064244305,-975.54,0.00013698,2]
[333347877,1722064244315,-500.0,0.00013698,2]
[333347878,1722064244326,-500.0,0.00013698,2]
[333347879,1722064244337,-500.0,0.00013698,2]
[333347880,1722064244349,-526.98226081,0.00013698,2]
[333347881,1722064244361,-500.0,0.00013698,2]
[333347882,1722064244493,-500.0,0.00013698,2]
[333347883,1722064244503,-500.0,0.00013698,2]
[333347884,1722064244512,-500.0,0.00013698,2]
[333347885,1722064244522,-1397.86,0.00013698,2]
[333347886,1722064244532,-500.0,0.00013698,2]
[333347887,1722064244543,-513.92849081,0.00013698,2]
[333347888,1722064244554,-500.0,0.00013698,2]
[333347889,1722064244563,-500.0,0.00013698,2]
[333347890,1722064244574,-500.0,0.00013698,2]
[333347891,1722064244583,-1107.45,0.00013698,2]
[333347892,1722064244593,-500.0,0.00013698,2]
[333347893,1722064244604,-500.0,0.00013698,2]
[333347894,1722064244613,-500.0,0.00013698,2]
[333347895,1722064244621,-655.02,0.00013698,2]
[333347896,1722064244632,-1932.49,0.00013698,2]
[333347897,1722064244643,-755.3,0.00013698,2]
[333347898,1722064244653,-1344.35,0.00013698,2]
[333347899,1722064244663,-500.0,0.00013698,2]
[333347900,1722064244673,-500.0,0.00013698,2]
[333347901,1722064244683,-500.0,0.00013698,2]
[333347902,1722064244693,-2176.25,0.00013698,2]
[333347903,1722064244702,-984.01,0.00013698,2]
[333347904,1722064244712,-984.01,0.00013698,2]
[333347905,1722064244722,-984.01,0.00013698,2]
[333347906,1722064244731,-984.01,0.00013698,2]
[333347907,1722064244740,-984.01,0.00013698,2]
[333347908,1722064244750,-984.01,0.00013698,2]
[333347909,1722064244763,-984.01,0.00013698,2]
[333347910,1722064244772,-984.01,0.00013698,2]
[333347911,1722064244782,-984.01,0.00013698,2]
[333347912,1722064244793,-984.01,0.00013698,2]
[333347913,1722064244803,-984.01,0.00013698,2]
[333347914,1722064244813,-984.01,0.00013698,2]
[333347915,1722064244824,-984.01,0.00013698,2]
[333347916,1722064244835,-984.01,0.00013698,2]
[333347917,1722064244846,-984.01,0.00013698,2]
[333347918,1722064244855,-984.01,0.00013698,2]
[333347919,1722064244865,-984.01,0.00013698,2]
[333347920,1722064244875,-984.01,0.00013698,2]
[333347921,1722064244885,-255.89869258,0.00013698,2]
[333347922,1722064244896,-151.0,0.00013698,2]
[333347923,1722064244907,-723.88,0.00013698,2]
[333347924,1722064244917,-500.0,0.00013698,2]
[333347925,1722064244927,-2827.54,0.00013698,2]
[333347926,1722064244937,-151.0,0.00013698,2]
[333347927,1722064244947,-151.0,0.00013698,2]
[333347928,1722064244957,-151.0,0.00013698,2]
[333347929,1722064244967,-2338.3,0.00013698,2]
[333347930,1722064244978,-500.0,0.00013698,2]
[333347931,1722064244987,-504.49,0.00013698,2]
[333347932,1722064244998,-500.0,0.00013698,2]
[333347933,1722064245008,-500.0,0.00013698,2]
[333347934,1722064245018,-151.0,0.00013698,2]
[333347935,1722064245028,-151.0,0.00013698,2]
[333347936,1722064245036,-1878.83,0.00013698,2]
[333347937,1722064245046,-378.99169868,0.00013698,2]
[333347938,1722064245055,-500.0,0.00013698,2]
[333347939,1722064245064,-500.0,0.00013698,2]
[333347940,1722064245075,-492.50201476,0.00013698,2]
[333347941,1722064245084,-500.0,0.00013698,2]
[333347942,1722064245093,-500.0,0.00013698,2]
[333347943,1722064245102,-500.0,0.00013698,2]
[333347944,1722064245111,-502.29692296,0.00013698,2]
[333347945,1722064245120,-500.0,0.00013698,2]
[333347946,1722064245129,-500.0,0.00013698,2]
[333347947,1722064245139,-500.0,0.00013698,2]
[333347948,1722064245147,-226.68341089,0.00013698,2]
[333347949,1722064245156,-500.0,0.00013698,2]
[333347950,1722064245166,-466.51518889,0.00013698,2]
[333347951,1722064245175,-500.0,0.00013698,2]
[333347952,1722064245184,-500.0,0.00013698,2]
[333347953,1722064245193,-500.0,0.00013698,2]
[333347954,1722064245202,-500.0,0.00013698,2]
[333347955,1722064245211,-500.0,0.00013698,2]
[333347956,1722064245221,-161.536317,0.00013699,2]
[333347957,1722064245230,-151.0,0.00013699,2]
[333347958,1722064245239,-151.0,0.00013699,2]
[333347959,1722064245248,-3000.0,0.00013699,2]
[333347960,1722064245257,-355.0,0.00013699,2]
[333347961,1722064245266,-688.34386,0.00013699,2]
[333347962,1722064245275,-150.112233,0.000137,2]